{"text_format":"2","workbook":"xlsx","n_sheets":5,"sheets":["GASTOS"," INGRESOS E IMPUESTOS","DETALLE GTOS.","KILOMETRAJE","INSTRUC"],"not_rendered":{"charts":0,"images":3,"macros":0,"external_links":0,"defined_names":0,"comments":0,"pivot_tables":0},"unopened":[],"bounds":{"document_bytes":16777216,"sheet_cells":100000,"run_cost":"one","rows_first":2000,"rows_last":500,"rows_between":2000,"halvings":0,"cell_chars":16384,"cell_head_chars":4096},"cells_cut":0,"cells_raw":0,"read":"whole","date_system":"1900"}

{"sheet":"GASTOS","index":0,"n_rows":47,"n_cols":5,"rows_kept":47,"cut":false,"hidden":false,"merged":[[2,0,2,1],[6,1,6,2],[7,0,7,1],[10,0,10,3],[1,0,1,3],[8,1,8,3],[12,0,12,3],[43,1,43,2],[44,1,44,3],[46,1,46,2],[11,0,11,3]]}
["","MODELO J3","",""]
["MEMORIA ECONÓMICA: RELACIÓN INGRESOS Y GASTOS"]
["Datos de identificación de beneficiario y subvención","","",""]
["Beneficiario:","","",""]
["Finalidad de la subvención:","","",""]
["Decreto de concesión:","","",""]
["Certificado","o Declaración","",""]
["(DE OBLIGACIÓN PARA ADMINISTRACIÓN PUBLICA)","","",""]
["D./Dª","D./Dª"]
["representante de la beneficiaria, CERTIFICA:","DECLARA:","",""]
["1. Que para la ejecución de la actividad subvencionada esta entidad ha incurrido en los gastos que a continuación figuran resumidos\npor conceptos, que se relacionan numerados en el anexo que se adjunta, y que se corresponden con los documentos justificativos\nque se aportan.","","",""]
["2. Que los gastos que se relacionan y justifican están directamente relacionados con la actividad subvencionada."]
["3. Que las desviaciones que se ponen de manifiesto del gasto efectivamente realizado respecto del previsto se deben a lo siguiente:","","",""]
["","Gasto realizado","Gasto presupuest.","Desviación"]
["Gastos de personal","","",""]
["Sueldos y salarios",null,null,{"$f":"IFERROR(100-((B16/C16)*100), \"\")","v":""}]
["Seguridad Social",null,null,{"$f":"IFERROR(100-((B17/C17)*100), \"\")","v":""}]
["Dietas",null,null,{"$f":"IFERROR(100-((B18/C18)*100), \"\")","v":""}]
["Kilometraje","","",""]
["SUBTOTAL",{"$f":"SUM(B15:B19)","v":0},{"$f":"SUM(C15:C19)","v":0},{"$f":"IFERROR(100-((B20/C20)*100), \"\")","v":""},{"$f":"IFERROR((B20/B41)*100,\"\")","v":""}]
["Bienes corrientes y servicios","","",{"$f":"IFERROR(100-((B21/C21)*100), \"\")","v":""}]
["Arrendamientos y cánones","","","",{"$f":"IFERROR((B22/#REF!)*100,\"\")","v":""}]
["Material de oficina",null,null,"",{"$f":"IFERROR((B23/#REF!)*100,\"\")","v":""}]
["Gas, electricidad, agua y otros suministros",null,null,"",{"$f":"IFERROR((B24/#REF!)*100,\"\")","v":""}]
["Reparaciones y mantenimiento","","","",{"$f":"IFERROR((B25/#REF!)*100,\"\")","v":""}]
["Comunicaciones",null,null,"",{"$f":"IFERROR((B26/#REF!)*100,\"\")","v":""}]
["Publicidad y relaciones públicas","","","",{"$f":"IFERROR((B27/#REF!)*100,\"\")","v":""}]
["Primas de seguros","","","",{"$f":"IFERROR((B28/#REF!)*100,\"\")","v":""}]
["Tributos","","","",{"$f":"IFERROR((B29/#REF!)*100,\"\")","v":""}]
["Prestación de servicios","","","",{"$f":"IFERROR((B30/#REF!)*100,\"\")","v":""}]
["Transportes","","","",{"$f":"IFERROR((B31/#REF!)*100,\"\")","v":""}]
["Otras adquisiciones","","","",{"$f":"IFERROR((B32/#REF!)*100,\"\")","v":""}]
["SUBTOTAL",{"$f":"SUM(B22:B32)","v":0},{"$f":"SUM(C22:C32)","v":0},"",{"$f":"IFERROR((B33/#REF!)*100,\"\")","v":""}]
["Gastos de inversión","","","",{"$f":"IFERROR((B34/#REF!)*100,\"\")","v":""}]
["Tipo","","","",{"$f":"IFERROR((B35/#REF!)*100,\"\")","v":""}]
["Bienes y equipamientos",null,null,"",{"$f":"IFERROR((B36/#REF!)*100,\"\")","v":""}]
["Edificios y similares","","","",{"$f":"IFERROR((B37/#REF!)*100,\"\")","v":""}]
["Equipos informáticos","","","",{"$f":"IFERROR((B38/#REF!)*100,\"\")","v":""}]
["Otras inversiones","","","",{"$f":"IFERROR((B39/B43)*100,\"\")","v":""}]
["SUBTOTAL",{"$f":"SUM(B36:B39)","v":0},{"$f":"SUM(C36:C39)","v":0},"",{"$f":"IFERROR((B40/B44)*100,\"\")","v":""}]
["TOTAL",{"$f":"SUM(B20+B33+B40)","v":0},{"$f":"SUM(C20+C33+C40)","v":0},"",{"$f":"IFERROR(SUM(E20+E33+E40),\"\")","v":""}]
[]
[]
[null,null,null,""]
[null,"En Cuarte de Huerva, a fecha de firma electrónica.","",""]
[null,"","",""]
[null,"(firma electrónica obligatoria)","",""]

{"sheet":" INGRESOS E IMPUESTOS","index":1,"n_rows":22,"n_cols":5,"rows_kept":22,"cut":false,"hidden":false,"merged":[[15,0,15,1],[16,0,16,1],[17,0,17,1],[21,0,21,4]]}
[]
[]
[]
["4. Que ___SI  / ____NO se han obtenido otras subvenciones, ayudas, ingresos o recursos aplicados a la finalidad subvencionada."]
[]
[null,"Origen o procedencia","Importe","% financiación sobre el gasto"]
["Subvenciones o ayudas públicas",null,null,{"$f":"IFERROR((C7/$B$38)*100,\"\")","v":""}]
[null,null,null,""]
[null,null,null,"",{"$f":"SUM(D7:D9)","v":0}]
["Subvenciones o ayudas privadas",null,null,""]
[null,null,null,""]
[null,null,null,"",{"$f":"SUM(D10:D12)","v":0}]
["Otros ingresos generados",null,null,""]
[null,null,null,""]
[null,null,null,"",{"$f":"SUM(D13:D15)","v":0}]
["Subvención Ayto. Cuarte de Huerva",null,null,{"$f":"IFERROR((C16/GASTOS!$B$41)*100,\"\")","v":""},{"$f":"SUM(D16)","v":0}]
["TOTAL INGRESOS ACTIVIDAD",null,{"$f":"SUM(C7:C16)","v":0},{"$f":"IFERROR((C17/GASTOS!$B$41)*100,\"\")","v":""},{"$f":"SUM(D17)","v":0}]
["TOTAL GASTOS DE LA ACTIVIDAD",null,{"$f":"B1","v":0},{"$f":"IFERROR((C18/GASTOS!$B$41)*100,\"\")","v":""}]
[]
[]
[]
["5. los impuestos indirectos que gravan las operaciones señaladas ___SI  / ____NO resultan subvencionables, según importe relacionado en tabla anexa."]

{"sheet":"DETALLE GTOS.","index":2,"n_rows":26,"n_cols":10,"rows_kept":26,"cut":false,"hidden":false,"merged":[[2,6,2,7],[2,8,2,9],[0,0,0,9]]}
["MODELOO J3: MEMORIA ECONÓMICA. DETALLE DE GASTOS"]
[1,2,3,4,5,6,7,8,9,""]
["","","","","","","Importe","","Fuente financiación",""]
["Núm","Concepto","Proveedor","Nº fact.","Fecha fact.","Fecha pago","Gasto realizado","IVA deducible","Subv CUARTE","Otras Subv"]
["","","","","","","","","",""]
["","","","","","","","","",""]
["","","","","","","","","",""]
["","","","","","","","","",""]
["","","","","","","","","",""]
["","","","","","","","","",""]
["","","","","","","","","",""]
["","","","","","","","","",""]
["","","","","","","","","",""]
["","","","","","","","","",""]
["","","","","","","","","",""]
["","","","","","","","","",""]
["","","","","","","","","",""]
["","","","","","","","","",""]
["","","","","","","","","",""]
["","","","","","","","","",""]
["","","","","","","","","",""]
["","","","","","","","","",""]
["","","","","","","","","",""]
["","","","","","","","","",""]
["","","","","","","","","",""]
["","","","","","TOTAL","0,00 ","0,00 ","0,00 ","0,00 "]

{"sheet":"KILOMETRAJE","index":3,"n_rows":9,"n_cols":8,"rows_kept":9,"cut":false,"hidden":false,"merged":[[8,0,8,6],[1,3,2,3],[1,1,4,1],[1,0,7,0],[1,5,2,5],[4,4,4,7],[5,1,7,1],[5,4,5,7],[6,4,6,7],[7,4,7,7],[3,4,3,7],[1,2,7,2],[0,0,0,3],[0,4,0,6],[1,4,2,4],[1,6,2,6],[1,7,2,7]]}
["TIPO DE GASTO",null,null,null,"IMPORTE",null,null,"TOTAL"]
["GASTOS POR DESPLAZAMIENTOS  Y KILOMETRAJE: MEDIOS DE TRANSPORTE EMPLEADOS","Vehículo propio matrícula núm. ________","motivo desplazamiento: ___________________________________________________________________","A) Nº de kilómetros realizados: origen___________ destino__________ ","0 Kms","x 0,26 €","=",0]
[]
[null,null,null,"B) Peajes",0]
[null,null,null,"C) Aparcamiento",0]
[null,"Otros medios de transporte",null,"D) Coste billete",0]
[null,null,null,"E) Tasas",0]
[null,null,null,"F) Facturación del servicio",0]
["SUMA A+B+C+D+E",{"$nulls":6},{"$f":"SUM(H2:H8)","v":0}]

{"sheet":"INSTRUC","index":4,"n_rows":14,"n_cols":2,"rows_kept":14,"cut":false,"hidden":false,"merged":[[5,0,5,1],[6,0,6,1],[0,0,0,1]]}
["INSTRUCCIONES PARA SU CUMPLIMENTACIÓN"]
["ANEXO J3. MEMORIA ECONÓMICA. RELACIÓN GASTOS"]
[1,"Que para la ejecución de la actividad subvencionada esta entidad ha incurrido en los gastos que a continuación figuran resumidos por conceptos, que se relacionan numerados en el anexo que se adjunta, y que se corresponden con los documentos justificativos que se aportan."]
["(2) Desviación: Diferencia entre el gasto subvencionable aprobado y el gasto subvencionable realizado."]
["ANEXO J3. MEMORIA ECONÓMICA. DETALLE DE GASTOS"]
["3. Proveedor de los bienes o servicios",""]
["4. Número de factura o documento con validez equivalente en el tráfico jurídico mercantil",""]
["5.","Fecha de expedición de factura o documento con validez equivalente en el tráfico jurídico mercantil"]
["6.","Fecha de pago"]
["7.","Importe del gasto realizado subvencionable:"]
["","Base Imponible + IVA no deducible / Salarios brutos + Cotización empresa Seg Social"]
["8.","IVA deducible (no subvencionable)"]
["9.","Fuente de financiación del gasto (parte del importe de la factura que es financiada con la subvención de la"]
["","Ayuntamiento, de conformidad con el decreto de concesión. Si hay cofinanciación pública, indicar importe\nque financia cada Administración)."]